fUSD/lending_fUSD_20260207
["ID","MTS","AMOUNT","RATE_DAILY","PERIOD"]
[404748890,1770507055924,-305.17533586,0.00039758,2]
[404748891,1770507055934,-300.0,0.00039758,2]
[404748892,1770507055943,-300.0,0.00039758,2]
[404748893,1770507055952,-497.07322801,0.00039758,2]
[404748894,1770507055961,-300.0,0.00039758,2]
[404748895,1770507055970,-300.0,0.00039758,2]
[404748896,1770507055980,-571.85515654,0.00039758,2]
[404748897,1770507055989,-300.0,0.00039758,2]
[404748898,1770507055999,-300.0,0.00039758,2]
[404748899,1770507056008,-1078.26092173,0.00039758,2]
[404748900,1770507056018,-323.79039153,0.00039758,2]
[404748901,1770507056028,-852.68208559,0.00039758,2]
[404748902,1770507056037,-305.02115314,0.00039758,2]
[404748903,1770507056047,-300.0,0.00039758,2]
[404748904,1770507056056,-881.38175827,0.00039758,2]
[404748905,1770507056066,-378.3585498,0.00039758,2]
[404748906,1770507056076,-300.0,0.00039758,2]
[404748907,1770507056086,-423.23513735,0.00039758,2]
[404748908,1770507056095,-490.34966063,0.00039758,2]
[404748909,1770507056106,-306.19819169,0.00039758,2]
[404748910,1770507056116,-457.17696299,0.00039758,2]
[404748911,1770507056125,-300.0,0.00039758,2]
[404748912,1770507056135,-300.0,0.00039758,2]
[404748913,1770507056144,-300.0,0.00039758,2]
[404748914,1770507056153,-370.09797997,0.00039758,2]
[404748915,1770507056163,-300.0,0.00039758,2]
[404748916,1770507056172,-300.0,0.00039758,2]
[404748917,1770507056183,-300.0,0.00039758,2]
[404748918,1770507056192,-300.0,0.00039758,2]
[404748919,1770507056201,-300.0,0.00039758,2]
[404748920,1770507056211,-516.79047855,0.00039758,2]
[404748921,1770507056221,-305.17533586,0.00039758,2]
[404748922,1770507056230,-524.2847137,0.00039758,2]
[404748923,1770507056240,-300.0,0.00039758,2]
[404748924,1770507056249,-513.97911582,0.00039758,2]
[404748925,1770507056258,-300.0,0.00039758,2]
[404748926,1770507056268,-571.85515654,0.00039758,2]
[404748927,1770507056278,-306.02001824,0.00039758,2]
[404748928,1770507056290,-300.0,0.00039758,2]
[404748929,1770507056299,-1078.26092173,0.00039758,2]
[404748930,1770507056308,-852.68208559,0.00039758,2]
[404748931,1770507056318,-305.02115314,0.00039758,2]
[404748932,1770507056329,-351.08327031,0.00039758,2]
[404748933,1770507056338,-881.38175827,0.00039758,2]
[404748934,1770507056348,-572.71501571,0.00039758,2]
[404748935,1770507056358,-306.19819169,0.00039758,2]
[404748936,1770507056368,-457.17696299,0.00039758,2]
[404748937,1770507056378,-300.0,0.00039758,2]
[404748938,1770507056388,-300.0,0.00039758,2]
[404748939,1770507056399,-565.80065593,0.00039758,2]
[404748940,1770507056408,-370.09797997,0.00039758,2]
[404748941,1770507056418,-300.0,0.00039758,2]
[404748942,1770507056428,-328.20719899,0.00039758,2]
[404748943,1770507056437,-300.0,0.00039758,2]
[404748944,1770507056446,-300.0,0.00039758,2]
[404748945,1770507056456,-300.0,0.00039758,2]
[404748946,1770507056465,-516.79047855,0.00039758,2]
[404748947,1770507056475,-305.17533586,0.00039758,2]
[404748948,1770507056484,-300.0,0.00039758,2]
[404748949,1770507056493,-300.0,0.00039758,2]
[404748950,1770507056503,-571.85515654,0.00039758,2]
[404748951,1770507056512,-300.0,0.00039758,2]
[404748952,1770507056522,-1078.26092173,0.00039758,2]
[404748953,1770507056533,-852.68208559,0.00039758,2]
[404748954,1770507056543,-305.02115314,0.00039758,2]
[404748955,1770507056553,-881.38175827,0.00039758,2]
[404748956,1770507056562,-306.19819169,0.00039758,2]
[404748957,1770507056572,-457.17696299,0.00039758,2]
[404748958,1770507056581,-300.0,0.00039758,2]
[404748959,1770507056591,-348.19510498,0.00039758,2]
[404748960,1770507056600,-370.09797997,0.00039758,2]
[404748961,1770507056609,-300.0,0.00039758,2]
[404748962,1770507056619,-300.0,0.00039758,2]
[404748963,1770507056628,-300.0,0.00039758,2]
[404748964,1770507056638,-300.0,0.00039758,2]
[404748965,1770507056647,-516.79047855,0.00039758,2]
[404748966,1770507056657,-305.17533586,0.00039758,2]
[404748967,1770507056666,-507.71259739,0.00039758,2]
[404748968,1770507056676,-571.85515654,0.00039758,2]
[404748969,1770507056685,-300.0,0.00039758,2]
[404748970,1770507056695,-300.0,0.00039758,2]
[404748971,1770507056705,-1078.26092173,0.00039758,2]
[404748972,1770507056714,-852.68208559,0.00039758,2]
[404748973,1770507056723,-305.02115314,0.00039758,2]
[404748974,1770507056733,-881.38175827,0.00039758,2]
[404748975,1770507056743,-306.19819169,0.00039758,2]
[404748976,1770507056752,-457.17696299,0.00039758,2]
[404748977,1770507056762,-300.0,0.00039758,2]
[404748978,1770507056771,-370.09797997,0.00039758,2]
[404748979,1770507056781,-300.0,0.00039758,2]
[404748980,1770507056790,-300.0,0.00039758,2]
[404748981,1770507056800,-404.83433757,0.00039758,2]
[404748982,1770507056809,-300.0,0.00039758,2]
[404748983,1770507056819,-516.79047855,0.00039758,2]
[404748984,1770507056829,-305.17533586,0.00039758,2]
[404748985,1770507056838,-300.0,0.00039758,2]
[404748986,1770507056848,-300.0,0.00039758,2]
[404748987,1770507056858,-732.21302239,0.00039758,2]
[404748988,1770507056868,-300.0,0.00039758,2]
[404748989,1770507056877,-1078.26092173,0.00039758,2]
[404748990,1770507056887,-852.68208559,0.00039758,2]
[404748991,1770507056897,-305.02115314,0.00039758,2]
[404748992,1770507056907,-881.38175827,0.00039758,2]
[404748993,1770507056917,-306.19819169,0.00039758,2]
[404748994,1770507056929,-457.17696299,0.00039758,2]
[404748995,1770507056940,-300.0,0.00039758,2]
[404748996,1770507056950,-370.09797997,0.00039758,2]
[404748997,1770507056960,-300.0,0.00039758,2]
[404748998,1770507056970,-300.0,0.00039758,2]
[404748999,1770507056979,-300.0,0.00039758,2]
[404749000,1770507056988,-516.79047855,0.00039758,2]
[404749001,1770507056998,-305.17533586,0.00039758,2]
[404749002,1770507057008,-300.0,0.00039758,2]
[404749003,1770507057019,-300.0,0.00039758,2]
[404749004,1770507057031,-300.0,0.00039758,2]
[404749005,1770507057040,-1078.26092173,0.00039758,2]
[404749006,1770507057050,-153.0,0.0004,120]
[404749007,1770507057060,-100000.0,0.0004,40]
[404749008,1770507057069,-100000.0,0.0004,8]
[404749009,1770507057079,-2343.0,0.0004,120]
[404749010,1770507057088,-160.0,0.0004,120]
[404749011,1770507057098,-160.0,0.0004,7]
[404749012,1770507057108,-1000.0,0.0004,14]
[404749013,1770507057118,-259.39905185,0.00040177,5]
[404749014,1770507057129,-1000.0,0.00040274,14]
[404749015,1770507057141,-200.0,0.00040375,2]
[404749016,1770507057150,-200.0,0.00040375,2]
[404749017,1770507057161,-200.0,0.00040375,2]
[404749018,1770507057170,-200.0,0.00040375,2]
[404749019,1770507057181,-200.0,0.00040375,2]
[404749020,1770507057189,-200.0,0.00040375,2]
[404749021,1770507057201,-200.0,0.00040375,2]
[404749022,1770507057211,-200.0,0.00040375,2]
[404749023,1770507057220,-200.0,0.00040375,2]
[404749024,1770507057231,-200.0,0.00040375,2]
[404749025,1770507057241,-200.0,0.00040375,2]
[404749026,1770507057251,-200.0,0.00040375,2]
[404749027,1770507057262,-200.0,0.00040375,2]
[404749028,1770507057272,-200.0,0.00040375,2]
[404749029,1770507057283,-200.0,0.00040375,2]
[404749030,1770507057295,-200.0,0.00040375,2]
[404749031,1770507057304,-200.0,0.00040375,2]
[404749032,1770507057314,-200.0,0.00040375,2]
[404749033,1770507057324,-200.0,0.00040375,2]
[404749034,1770507057335,-200.0,0.00040375,2]
[404749035,1770507057345,-200.0,0.00040375,2]
[404749036,1770507057355,-200.0,0.00040375,2]
[404749037,1770507057364,-200.0,0.00040375,2]
[404749038,1770507057373,-200.0,0.00040375,2]
[404749039,1770507057382,-200.0,0.00040375,2]
[404749040,1770507057430,-200.0,0.00040375,2]
[404749041,1770507057440,-200.0,0.00040375,2]
[404749042,1770507057450,-200.0,0.00040375,2]
[404749043,1770507057461,-200.0,0.00040375,2]
[404749044,1770507057471,-200.0,0.00040375,2]
[404749045,1770507057480,-200.0,0.00040375,2]
[404749046,1770507057488,-200.0,0.00040375,2]
[404749047,1770507057496,-200.0,0.00040375,2]
[404749048,1770507057505,-200.0,0.00040375,2]
[404749049,1770507057515,-200.0,0.00040375,2]
[404749050,1770507057525,-200.0,0.00040375,2]
[404749051,1770507057535,-205.0,0.00040375,2]
[404749052,1770507057544,-150.0,0.00040406,2]
[404749053,1770507057555,-1823.33457415,0.00040432,15]
[404749054,1770507057565,-3174.53686387,0.00040471,15]
[404749055,1770507057575,-531.49814714,0.00040522,2]
[404749056,1770507057586,-1000.0,0.00040548,14]
[404749057,1770507057597,-13082.53,0.000406,14]
[404749058,1770507057607,-153.0,0.000408,120]
[404749059,1770507057616,-1272.0,0.00040822,2]
[404749060,1770507057627,-917.0,0.00040822,2]
[404749061,1770507057636,-1206.0,0.00040822,2]
[404749062,1770507057646,-3483.0,0.00040822,2]
[404749063,1770507057657,-1411.0,0.00040822,2]
[404749064,1770507057666,-2447.0,0.00040822,2]
[404749065,1770507057676,-1000.0,0.00040822,14]
[404749066,1770507057687,-300.08062,0.00040854,103]
[404749067,1770507057697,-10000.0,0.00041,120]
[404749068,1770507057707,-507.0,0.00041078,12]
[404749069,1770507057716,-688.804032,0.00041096,120]
[404749070,1770507057726,-688.804032,0.00041096,120]
[404749071,1770507057736,-688.804032,0.00041096,120]
[404749072,1770507057745,-688.804032,0.00041096,120]
[404749073,1770507057755,-688.804032,0.00041096,120]
[404749074,1770507057764,-688.804032,0.00041096,120]
[404749075,1770507057774,-688.804032,0.00041096,120]
[404749076,1770507057784,-688.804032,0.00041096,120]
[404749077,1770507057794,-688.804032,0.00041096,120]
[404749078,1770507057804,-688.804032,0.00041096,120]
[404749079,1770507057813,-688.804032,0.00041096,120]
[404749080,1770507057823,-688.804032,0.00041096,120]
[404749081,1770507057834,-688.804032,0.00041096,120]
[404749082,1770507057845,-688.804032,0.00041096,120]
[404749083,1770507057855,-688.804032,0.00041096,120]
[404749084,1770507057865,-688.804032,0.00041096,120]
[404749085,1770507057874,-688.804032,0.00041096,120]
[404749086,1770507057884,-688.804032,0.00041096,120]
[404749087,1770507057893,-688.804032,0.00041096,120]
[404749088,1770507057903,-688.804022,0.00041096,120]
[404749089,1770507057916,-1000.0,0.00041096,30]
[404749090,1770507057927,-1000.0,0.0004137,30]
[404749091,1770507057937,-152.24,0.00041413,120]
[404749092,1770507057947,-1056.96040572,0.00041414,120]
[404749093,1770507057956,-153.0,0.000415,120]
[404749094,1770507057966,-152.24,0.00041513,120]
[404749095,1770507057975,-1000.0,0.00041644,30]
[404749096,1770507057985,-382.85,0.000417,14]
[404749097,1770507057994,-680.02,0.00041902,120]
[404749098,1770507058003,-1000.0,0.00041918,30]
[404749099,1770507058012,-210.59733973,0.00042,2]
[404749100,1770507058022,-29999.999999,0.00042,30]
[404749101,1770507058031,-531.49814714,0.0004212,2]
[404749102,1770507058040,-1000.0,0.00042192,30]
[404749103,1770507058049,-761.74262388,0.000422,2]
[404749104,1770507058058,-13082.53,0.000422,14]
[404749105,1770507058067,-153.0,0.000423,120]
[404749106,1770507058076,-150.0,0.00042426,120]
[404749107,1770507058085,-500.0,0.00042465,120]
[404749108,1770507058094,-500.0,0.00042465,120]
[404749109,1770507058104,-500.0,0.00042465,120]
[404749110,1770507058113,-500.0,0.00042465,120]
[404749111,1770507058122,-500.0,0.00042465,2]
[404749112,1770507058131,-150.0,0.00042465,20]
[404749113,1770507058141,-500.0,0.00042465,120]
[404749114,1770507058151,-407.762967,0.00042466,120]
[404749115,1770507058162,-407.762967,0.00042466,120]
[404749116,1770507058171,-407.762967,0.00042466,120]
[404749117,1770507058182,-407.762967,0.00042466,120]
[404749118,1770507058192,-407.762967,0.00042466,120]
[404749119,1770507058204,-407.762967,0.00042466,120]
[404749120,1770507058214,-407.762967,0.00042466,120]
[404749121,1770507058224,-407.762967,0.00042466,120]
[404749122,1770507058235,-407.762967,0.00042466,120]
[404749123,1770507058246,-407.762967,0.00042466,120]
[404749124,1770507058256,-407.762967,0.00042466,120]
[404749125,1770507058267,-407.762967,0.00042466,120]
[404749126,1770507058279,-407.762967,0.00042466,120]
[404749127,1770507058294,-407.762967,0.00042466,120]
[404749128,1770507058303,-407.762967,0.00042466,120]
[404749129,1770507058314,-407.762967,0.00042466,120]
[404749130,1770507058324,-407.762967,0.00042466,120]
[404749131,1770507058336,-407.762967,0.00042466,120]
[404749132,1770507058346,-407.762967,0.00042466,120]
[404749133,1770507058358,-407.762968,0.00042466,120]
[404749134,1770507058367,-20000.0,0.00042466,120]
[404749135,1770507058377,-1000.0,0.00042466,30]
[404749136,1770507058388,-160.0,0.000425,120]
[404749137,1770507058398,-1550.0,0.00042739,30]
[404749138,1770507058409,-1000.0,0.0004274,30]
[404749139,1770507058419,-507.0,0.0004277,14]
[404749140,1770507058429,-257.97447331,0.00042853,7]
[404749141,1770507058438,-209.0,0.00043,30]
[404749142,1770507058448,-153.0,0.00043,120]
[404749143,1770507058457,-3037.492,0.00043,120]
[404749144,1770507058468,-160.0,0.00043,30]
[404749145,1770507058478,-66737.0,0.00043,8]
[404749146,1770507058488,-3244.50299334,0.00043,30]
[404749147,1770507058497,-100275.86540913,0.00043,2]
[404749148,1770507058506,-10000.0,0.00043,120]
[404749149,1770507058515,-380.41,0.00043,14]
[404749150,1770507058524,-1000.0,0.00043014,30]
[404749151,1770507058535,-151.0,0.00043068,120]
[404749152,1770507058544,-151.73,0.00043068,120]
[404749153,1770507058553,-454.05087748,0.00043221,30]
[404749154,1770507058564,-459.6864643,0.00043256,30]
[404749155,1770507058573,-1000.0,0.00043288,30]
[404749156,1770507058582,-2000.0,0.000433,2]
[404749157,1770507058591,-785.0,0.000433,30]
[404749158,1770507058601,-1000.0,0.00043375,10]
[404749159,1770507058610,-1000.0,0.00043375,10]
[404749160,1770507058620,-1941.30698508,0.00043375,10]
[404749161,1770507058632,-552.67600709,0.000435,120]
[404749162,1770507058641,-998.0,0.000435,30]
[404749163,1770507058651,-1000.0,0.00043562,30]
[404749164,1770507058661,-360.45385874,0.0004357,45]
[404749165,1770507058671,-717.29,0.000436,30]
[404749166,1770507058682,-531.49814714,0.00043717,2]
[404749167,1770507058691,-153.0,0.000438,120]
[404749168,1770507058701,-446.17,0.000438,120]
[404749169,1770507058710,-13082.53,0.000438,14]
[404749170,1770507058719,-1272.0,0.00043822,2]
[404749171,1770507058728,-917.0,0.00043822,2]
[404749172,1770507058738,-1206.0,0.00043822,2]
[404749173,1770507058747,-3483.0,0.00043822,2]
[404749174,1770507058756,-1411.0,0.00043822,2]
[404749175,1770507058766,-2447.0,0.00043822,2]
[404749176,1770507058775,-426.4,0.00043834,120]
[404749177,1770507058784,-500.0,0.00043834,120]
[404749178,1770507058793,-462.88,0.00043834,120]
[404749179,1770507058802,-603.19668382,0.00043834,120]
[404749180,1770507058811,-620.13152007,0.00043834,120]
[404749181,1770507058820,-500.0,0.00043834,2]
[404749182,1770507058829,-500.0,0.00043834,2]
[404749183,1770507058839,-500.0,0.00043834,2]
[404749184,1770507058848,-500.0,0.00043834,120]
[404749185,1770507058857,-500.0,0.00043834,120]
[404749186,1770507058867,-500.0,0.00043834,120]
[404749187,1770507058876,-500.0,0.00043835,120]
[404749188,1770507058887,-500.0,0.00043835,120]
[404749189,1770507058898,-500.0,0.00043835,120]
[404749190,1770507058909,-500.0,0.00043835,120]
[404749191,1770507058918,-500.0,0.00043835,120]
[404749192,1770507058928,-500.0,0.00043835,2]
[404749193,1770507058937,-500.0,0.00043835,2]
[404749194,1770507058946,-500.0,0.00043835,2]
[404749195,1770507058955,-500.0,0.00043835,2]
[404749196,1770507058965,-500.0,0.00043835,2]
[404749197,1770507058977,-500.0,0.00043835,2]
[404749198,1770507058988,-500.0,0.00043835,2]
[404749199,1770507058999,-500.0,0.00043835,2]
[404749200,1770507059009,-500.0,0.00043835,2]
[404749201,1770507059017,-500.0,0.00043835,2]
[404749202,1770507059027,-500.0,0.00043835,2]
[404749203,1770507059036,-500.0,0.00043835,2]
[404749204,1770507059044,-458.60302738,0.00043835,2]
[404749205,1770507059053,-500.0,0.00043835,120]
[404749206,1770507059062,-500.0,0.00043835,120]
[404749207,1770507059071,-500.0,0.00043835,120]
[404749208,1770507059081,-500.0,0.00043835,120]
[404749209,1770507059090,-500.0,0.00043835,120]
[404749210,1770507059099,-500.0,0.00043835,120]
[404749211,1770507059110,-511.15217907,0.00043835,120]
[404749212,1770507059120,-500.0,0.00043835,120]
[404749213,1770507059129,-500.0,0.00043835,120]
[404749214,1770507059138,-500.0,0.00043835,120]
[404749215,1770507059147,-500.0,0.00043835,120]
[404749216,1770507059156,-497.29825063,0.00043835,120]
[404749217,1770507059166,-500.0,0.00043835,120]
[404749218,1770507059175,-500.0,0.00043835,120]
[404749219,1770507059185,-500.0,0.00043835,120]
[404749220,1770507059194,-500.0,0.00043835,120]
[404749221,1770507059203,-500.0,0.00043835,120]
[404749222,1770507059213,-509.95009223,0.00043835,120]
[404749223,1770507059222,-500.0,0.00043835,120]
[404749224,1770507059232,-500.0,0.00043835,120]
[404749225,1770507059241,-500.0,0.00043835,120]
[404749226,1770507059251,-524.68549888,0.00043835,120]
[404749227,1770507059260,-500.0,0.00043835,120]
[404749228,1770507059270,-500.0,0.00043835,120]
[404749229,1770507059279,-500.0,0.00043835,120]
[404749230,1770507059292,-512.72044027,0.00043835,120]
[404749231,1770507059302,-500.0,0.00043835,120]
[404749232,1770507059311,-509.91741181,0.00043835,120]
[404749233,1770507059321,-500.0,0.00043835,120]
[404749234,1770507059331,-500.0,0.00043835,120]
[404749235,1770507059340,-500.0,0.00043835,120]
[404749236,1770507059350,-509.51127569,0.00043835,120]
[404749237,1770507059360,-522.89336935,0.00043835,120]
[404749238,1770507059370,-500.0,0.00043835,120]
[404749239,1770507059379,-500.0,0.00043835,120]
[404749240,1770507059388,-500.0,0.00043835,120]
[404749241,1770507059398,-500.0,0.00043835,120]
[404749242,1770507059406,-500.0,0.00043835,120]
[404749243,1770507059414,-500.0,0.00043835,120]
[404749244,1770507059422,-500.0,0.00043835,120]
[404749245,1770507059431,-531.16705146,0.00043835,120]
[404749246,1770507059440,-500.0,0.00043835,120]
[404749247,1770507059450,-564.03276301,0.00043835,120]
[404749248,1770507059460,-527.31887316,0.00043835,120]
[404749249,1770507059470,-503.55997817,0.00043835,120]
[404749250,1770507059479,-500.0,0.00043835,120]
[404749251,1770507059488,-177.33684491,0.00043835,120]
[404749252,1770507059498,-500.0,0.00043835,120]
[404749253,1770507059508,-500.0,0.00043835,120]
[404749254,1770507059517,-525.64347027,0.00043835,120]
[404749255,1770507059526,-500.0,0.00043835,120]
[404749256,1770507059536,-191.73732774,0.00043835,120]
[404749257,1770507059546,-500.0,0.00043835,120]
[404749258,1770507059556,-500.0,0.00043835,120]
[404749259,1770507059565,-500.0,0.00043835,120]
[404749260,1770507059575,-500.0,0.00043835,120]
[404749261,1770507059585,-506.25651286,0.00043835,120]
[404749262,1770507059595,-463.24358079,0.00043835,120]
[404749263,1770507059605,-513.49043376,0.00043835,120]
[404749264,1770507059614,-500.0,0.00043835,7]
[404749265,1770507059623,-564.7267188,0.00043835,7]
[404749266,1770507059633,-500.0,0.00043835,120]
[404749267,1770507059642,-500.0,0.00043835,120]
[404749268,1770507059652,-500.0,0.00043835,120]
[404749269,1770507059662,-500.0,0.00043835,120]
[404749270,1770507059672,-527.43362897,0.00043835,120]
[404749271,1770507059682,-500.0,0.00043835,120]
[404749272,1770507059691,-500.0,0.00043835,120]
[404749273,1770507059701,-500.0,0.00043835,120]
[404749274,1770507059710,-561.00864434,0.00043835,120]
[404749275,1770507059720,-500.0,0.00043835,120]
[404749276,1770507059729,-500.0,0.00043835,120]
[404749277,1770507059739,-500.0,0.00043835,120]
[404749278,1770507059748,-500.0,0.00043835,120]
[404749279,1770507059758,-514.41248528,0.00043835,120]
[404749280,1770507059767,-502.85148283,0.00043835,120]
[404749281,1770507059778,-451.42962485,0.00043835,120]
[404749282,1770507059787,-500.0,0.00043835,120]
[404749283,1770507059797,-500.0,0.00043835,120]
[404749284,1770507059806,-500.0,0.00043835,120]
[404749285,1770507059816,-500.0,0.00043835,120]
[404749286,1770507059826,-500.0,0.00043835,120]
[404749287,1770507059836,-500.0,0.00043835,120]
[404749288,1770507059846,-500.0,0.00043835,120]
[404749289,1770507059855,-500.0,0.00043835,120]
[404749290,1770507059864,-500.0,0.00043835,120]
[404749291,1770507059874,-500.0,0.00043835,120]
[404749292,1770507059883,-500.0,0.00043835,120]
[404749293,1770507059893,-500.0,0.00043835,120]
[404749294,1770507059904,-500.0,0.00043835,120]
[404749295,1770507059914,-500.0,0.00043835,120]
[404749296,1770507059924,-500.0,0.00043835,120]
[404749297,1770507059935,-500.0,0.00043835,120]
[404749298,1770507059946,-500.0,0.00043835,120]
[404749299,1770507059956,-500.0,0.00043835,120]
[404749300,1770507059966,-500.0,0.00043835,120]
[404749301,1770507059979,-500.0,0.00043835,120]
[404749302,1770507059991,-500.0,0.00043835,120]
[404749303,1770507060003,-500.0,0.00043835,120]
[404749304,1770507060014,-550.2392,0.00043835,120]
[404749305,1770507060024,-424.38,0.00043835,2]
[404749306,1770507060034,-424.38,0.00043835,2]
[404749307,1770507060044,-424.38,0.00043835,2]
[404749308,1770507060054,-424.38,0.00043835,2]
[404749309,1770507060064,-424.38,0.00043835,2]
[404749310,1770507060073,-424.38,0.00043835,2]
[404749311,1770507060083,-424.38,0.00043835,2]
[404749312,1770507060093,-424.38,0.00043835,2]
[404749313,1770507060103,-424.38,0.00043835,2]
[404749314,1770507060112,-599.78564407,0.00043835,120]
[404749315,1770507060122,-500.0,0.00043835,120]
[404749316,1770507060132,-500.0,0.00043835,120]
[404749317,1770507060142,-500.0,0.00043835,120]
[404749318,1770507060152,-500.0,0.00043835,120]
[404749319,1770507060161,-527.98644459,0.00043835,120]
[404749320,1770507060171,-500.0,0.00043835,120]
[404749321,1770507060180,-416.49663224,0.00043835,120]
[404749322,1770507060190,-500.0,0.00043835,120]
[404749323,1770507060199,-500.0,0.00043835,120]
[404749324,1770507060208,-500.0,0.00043835,120]
[404749325,1770507060218,-512.85230459,0.00043835,120]
[404749326,1770507060232,-500.0,0.00043835,120]
[404749327,1770507060242,-500.0,0.00043835,120]
[404749328,1770507060252,-523.76572475,0.00043835,120]
[404749329,1770507060261,-500.0,0.00043835,120]
[404749330,1770507060271,-500.0,0.00043835,120]
[404749331,1770507060281,-500.0,0.00043835,120]
[404749332,1770507060294,-500.0,0.00043835,120]
[404749333,1770507060304,-500.0,0.00043835,120]
[404749334,1770507060313,-500.0,0.00043835,120]
[404749335,1770507060323,-500.0,0.00043835,120]
[404749336,1770507060333,-500.0,0.00043835,120]
[404749337,1770507060343,-500.0,0.00043835,120]
[404749338,1770507060352,-518.07778084,0.00043835,120]
[404749339,1770507060365,-500.0,0.00043835,120]
[404749340,1770507060374,-500.0,0.00043835,120]
[404749341,1770507060384,-500.0,0.00043835,120]
[404749342,1770507060393,-500.0,0.00043835,120]
[404749343,1770507060402,-500.0,0.00043835,120]
[404749344,1770507060412,-500.0,0.00043835,120]
[404749345,1770507060421,-500.0,0.00043835,120]
[404749346,1770507060430,-500.0,0.00043835,120]
[404749347,1770507060444,-500.0,0.00043835,120]
[404749348,1770507060453,-554.63041894,0.00043835,120]
[404749349,1770507060463,-500.0,0.00043835,120]
[404749350,1770507060473,-500.0,0.00043835,120]
[404749351,1770507060482,-507.38840927,0.00043835,120]
[404749352,1770507060492,-500.0,0.00043835,120]
[404749353,1770507060501,-500.0,0.00043835,120]
[404749354,1770507060511,-500.0,0.00043835,120]
[404749355,1770507060520,-500.0,0.00043835,120]
[404749356,1770507060530,-500.0,0.00043835,120]
[404749357,1770507060539,-500.0,0.00043835,120]
[404749358,1770507060549,-500.0,0.00043835,120]
[404749359,1770507060559,-500.0,0.00043835,120]
[404749360,1770507060569,-500.0,0.00043835,120]
[404749361,1770507060579,-500.0,0.00043835,120]
[404749362,1770507060589,-500.0,0.00043835,120]
[404749363,1770507060599,-500.0,0.00043835,120]
[404749364,1770507060608,-500.0,0.00043835,120]
[404749365,1770507060618,-500.0,0.00043835,120]
[404749366,1770507060628,-500.0,0.00043835,120]
[404749367,1770507060637,-500.0,0.00043835,120]
[404749368,1770507060648,-500.0,0.00043835,120]
[404749369,1770507060658,-500.0,0.00043835,120]
[404749370,1770507060668,-523.46927118,0.00043835,120]
[404749371,1770507060678,-204.28500295,0.00043835,120]
[404749372,1770507060688,-500.0,0.00043835,120]
[404749373,1770507060698,-500.0,0.00043835,120]
[404749374,1770507060708,-500.0,0.00043835,120]
[404749375,1770507060717,-500.0,0.00043835,120]
[404749376,1770507060727,-500.0,0.00043835,120]
[404749377,1770507060738,-500.0,0.00043835,120]
[404749378,1770507060748,-500.0,0.00043835,120]
[404749379,1770507060760,-500.0,0.00043835,120]
[404749380,1770507060769,-500.0,0.00043835,120]
[404749381,1770507060779,-500.0,0.00043835,120]
[404749382,1770507060789,-500.0,0.00043835,120]
[404749383,1770507060799,-500.0,0.00043835,120]
[404749384,1770507060809,-500.0,0.00043835,120]
[404749385,1770507060818,-500.0,0.00043835,120]
[404749386,1770507060828,-500.0,0.00043835,120]
[404749387,1770507060838,-500.0,0.00043835,120]
[404749388,1770507060847,-500.0,0.00043835,120]
[404749389,1770507060857,-500.0,0.00043835,120]